bitfinex/quotes_ETHUSD_20251031
["timestamp","ask_amount","ask_price","bid_price","bid_amount"]
[1761931612407,0.4155,3831.5,3830.9,0.1637]
[1761931612700,0.4155,3831.5,3831.0,2.63636653]
[1761931612906,0.4155,3831.5,3831.4,2.610012]
[1761931613505,0.473,3831.7,3831.6,2.60987576]
[1761931613806,0.473,3831.7,3831.3,2.61004037]
[1761931614005,0.4155,3831.4,3831.3,2.61008012]
[1761931614906,0.8785,3831.4,3831.2,0.1304]
[1761931615104,0.1304,3831.2,3830.9,5.91123975]
[1761931615407,0.4161,3831.0,3830.9,5.91123975]
[1761931615820,0.463,3831.6,3831.1,2.61021638]
[1761931616126,0.463,3831.6,3830.9,6.35243975]
[1761931616127,0.463,3831.6,3831.5,2.60994388]
[1761931616290,0.463,3831.6,3830.9,3.74209615]
[1761931616478,0.01,3831.7,3831.5,2.60994388]
[1761931616687,0.01,3831.7,3831.6,2.60987576]
[1761931616890,0.01,3831.7,3831.6,3.07717451]
[1761931617094,0.01,3831.7,3831.6,3.51837451]
[1761931617308,0.01,3831.7,3831.6,4.45075576]
[1761931617487,0.01,3831.7,3831.6,5.15682572]
[1761931618112,0.01,3832.7,3831.7,1.39968]
[1761931618314,0.01,3832.7,3832.6,2.6091948]
[1761931619895,0.01,3832.7,3832.6,3.0503948]
[1761931620527,0.948,3832.7,3832.6,2.6091948]
[1761931620696,0.948,3832.7,3831.7,0.1437]
[1761931620891,0.948,3832.7,3832.0,1.39968]
[1761931620892,0.4108,3832.5,3832.0,1.39968]
[1761931621208,0.4108,3832.5,3832.2,2.60941955]
[1761931621511,0.4108,3832.5,3831.4,2.75366571]
[1761931621722,0.463,3832.4,3832.0,2.60956219]
[1761931621888,0.4108,3832.5,3832.4,2.60933096]
[1761931622086,0.01,3832.7,3832.0,0.26095622]
[1761931622308,0.01,3832.7,3832.6,2.6091948]
[1761931622888,0.01,3832.7,3832.6,2.63528674]
[1761931623087,0.01,3832.7,3832.6,3.07648674]
[1761931623511,0.01,3832.7,3832.6,4.47616674]
[1761931623709,0.01,3832.7,3832.6,5.22883126]
[1761931624079,0.01,3832.7,3832.6,5.20273932]
[1761931624286,0.40920679,3833.4,3833.3,2.60871833]
[1761931624483,0.01,3833.7,3833.6,2.60851419]
[1761931624917,0.01,3833.7,3833.6,3.07579933]
[1761931625103,0.01,3833.7,3833.6,4.12955918]
[1761931625316,1e-08,3833.7,3833.6,5.46745804]
[1761931625516,1e-08,3833.7,3833.6,5.90865804]
[1761931625933,1e-08,3833.7,3833.6,6.03905804]
[1761931626231,0.1296,3835.6,3834.6,2.60783393]
[1761931626440,0.1296,3835.6,3834.6,5.0998895]
[1761931626646,0.1296,3835.6,3834.6,5.5410895]
[1761931627196,1e-08,3834.7,3834.6,5.9465935]
[1761931627396,1e-08,3834.7,3834.6,5.3757935]
[1761931627704,1e-08,3834.7,3834.6,4.9702895]
[1761931628513,1e-08,3834.7,3834.6,5.4114895]
[1761931629037,1e-08,3834.7,3834.6,4.9702895]
[1761931630844,0.47500001,3834.7,3834.6,4.00751393]
[1761931631024,0.93800001,3834.7,3834.2,2.6080587]
[1761931631356,0.93800001,3834.7,3833.5,2.60852804]
[1761931631357,1e-08,3834.7,3833.3,0.4412]
[1761931631507,0.46300001,3834.7,3834.5,2.60790154]
[1761931631852,0.46300001,3834.7,3833.5,1.39968]
[1761931632149,0.46300001,3834.7,3834.1,2.60811898]
[1761931632372,0.46300001,3834.7,3833.5,0.197458]
[1761931632655,0.46300001,3834.7,3833.9,2.60830519]
[1761931632854,0.475,3834.0,3833.9,2.60830519]
[1761931633064,1e-08,3834.7,3834.1,2.60812218]
[1761931633272,0.46300001,3834.7,3834.2,2.60810336]
[1761931633626,0.46300001,3834.7,3833.5,0.4412]
[1761931633871,0.4013,3834.1,3833.5,0.49888114]
[1761931634027,0.4013,3834.1,3833.8,2.60831451]
[1761931634226,0.4013,3834.1,3834.0,2.60824204]
[1761931634427,0.4013,3834.1,3833.9,2.60828715]
[1761931634729,0.4013,3834.1,3833.2,4.1421275]
[1761931634967,0.8643,3834.1,3833.5,1.39968]
[1761931635174,0.8643,3834.1,3833.0,1.39968]
[1761931635479,0.463,3834.0,3833.7,2.60844087]
[1761931635780,0.6657,3833.8,3833.2,2.60877677]
[1761931635959,0.1914,3833.8,3833.1,1.39968]
[1761931636126,0.6841,3833.8,3832.4,1.39968]
[1761931636326,0.6841,3833.8,3832.6,1.39968]
[1761931636554,0.6841,3833.8,3833.6,2.60945048]
[1761931636753,0.6841,3833.8,3833.6,2.60950097]
[1761931637060,0.9847,3833.7,3833.6,0.001]
[1761931638425,1.11535,3833.7,3833.6,0.001]
[1761931638831,0.9839,3833.7,3833.6,0.001]
[1761931639359,1.1143,3833.7,3833.6,0.001]
[1761931639539,9.450779,3833.7,3833.6,0.001]
[1761931639932,6.989272,3833.7,3833.6,0.001]
[1761931640259,13.987791,3833.7,3833.6,0.001]
[1761931640463,2.5322191,3833.7,3833.6,0.001]
[1761931640642,8.446139,3833.7,3833.6,0.001]
[1761931641050,1.1143,3833.7,3833.6,0.001]
[1761931641370,0.9839,3833.7,3833.6,0.001]
[1761931641758,14.67526457,3833.7,3833.6,0.001]
[1761931641946,12.10358,3833.7,3833.6,0.001]
[1761931642475,13.333078,3833.7,3833.6,0.001]
[1761931642642,35.22734814,3833.7,3833.6,0.001]
[1761931642838,36.62702814,3833.7,3833.6,0.001]
[1761931643259,21.91879214,3833.7,3833.6,0.001]
[1761931643463,20.66384214,3833.7,3833.6,0.001]
[1761931643636,27.86029914,3833.7,3833.6,0.001]
[1761931644744,37.03632504,3833.7,3833.6,0.001]
[1761931645082,38.60832504,3833.7,3833.6,0.001]
[1761931645242,18.88617214,3832.2,3832.1,0.01]
[1761931645439,8.556715,3832.2,3832.1,0.01]
[1761931645675,11.65808214,3832.2,3832.1,0.01]
[1761931645979,17.43404014,3832.2,3832.1,0.01]
[1761931646175,9.070668,3832.2,3832.1,0.01]
[1761931646381,0.1806,3832.3,3832.1,0.01]
[1761931646748,4.111025,3832.2,3832.1,0.01]
[1761931647341,13.533807,3832.2,3832.1,0.01]
[1761931647670,12.891433,3832.2,3832.1,0.01]
[1761931648085,12.097502,3832.2,3832.1,0.01]
[1761931648251,7.2807892,3832.2,3832.1,0.01]
[1761931648447,5.4253172,3832.2,3832.1,0.01]
[1761931648647,4.197507,3832.2,3832.1,0.01]
[1761931648848,3.609507,3832.2,3832.1,0.01]
[1761931649053,0.4582,3832.2,3832.1,0.01]
[1761931649476,0.49081833,3832.2,3832.1,0.01]
[1761931649679,0.03261833,3832.2,3832.1,0.01]
[1761931649983,0.1806,3832.3,3832.1,0.01]
[1761931650287,0.1806,3832.8,3832.2,2.60945531]
[1761931650485,0.03261408,3832.7,3832.3,2.60939715]
[1761931651067,0.03261408,3832.7,3832.1,0.01]
[1761931651267,0.4582,3832.4,3832.2,2.60940033]
[1761931651456,0.1304,3832.5,3832.2,2.635495]
[1761931651658,0.6725,3833.1,3832.4,3.05153096]
[1761931651886,0.1304,3832.7,3832.6,2.6091948]
[1761931652266,0.1304,3832.7,3832.6,3.46374603]
[1761931652457,1.0805,3832.7,3832.5,3.30089615]
[1761931652654,0.4097,3832.6,3832.5,3.30089615]
[1761931652860,0.9016,3832.6,3832.5,3.30089615]
[1761931653254,0.4097,3832.6,3832.5,3.30089615]
[1761931653480,0.1304,3832.7,3832.5,3.30089615]
[1761931653689,0.1806,3833.6,3833.3,2.60870929]
[1761931653875,0.1806,3833.6,3832.9,2.60899058]
[1761931654214,6.73071727,3833.5,3833.1,2.60884237]
[1761931654367,0.6725,3833.6,3833.0,0.02608922]
[1761931654694,4.39665927,3833.5,3832.7,3.30089615]
[1761931654873,0.03260727,3833.5,3832.8,0.38919187]
[1761931655072,0.03260727,3833.5,3833.0,2.60890723]
[1761931655497,0.4919,3833.4,3832.9,2.60897512]
[1761931655795,0.4097,3833.0,3832.4,3.30089615]
[1761931656092,4.526847,3832.8,3832.5,3.30089615]
[1761931656293,2.04816,3832.6,3832.5,3.30089615]
[1761931656525,0.40925322,3833.1,3832.5,3.30089615]
[1761931656665,0.03261153,3833.0,3832.5,3.30089615]
[1761931656865,0.90115322,3833.1,3832.7,2.60908444]
[1761931657088,0.90115322,3833.1,3832.5,3.30089615]
[1761931657295,0.03261153,3833.0,3832.5,3.30089615]
[1761931657500,0.6725,3833.6,3832.6,0.02609194]
[1761931657678,0.40922356,3833.4,3832.6,0.02609194]
[1761931657880,0.6388,3832.7,3832.5,3.30089615]
[1761931658081,0.4097,3832.6,3832.5,3.30089615]
[1761931658601,0.03260897,3833.3,3832.5,3.74309615]
[1761931658893,0.40922356,3833.4,3832.5,3.74309615]
[1761931658894,0.40922356,3833.4,3833.2,2.60873446]
[1761931659061,0.40922356,3833.4,3833.3,3.30089615]
[1761931659576,0.86742356,3833.4,3833.3,3.30089615]
[1761931660394,0.86742356,3833.4,3833.3,5.90961448]
[1761931660605,0.86742356,3833.4,3833.3,3.30089615]
[1761931660899,0.40922356,3833.4,3833.3,3.30089615]
[1761931661058,0.1806,3833.6,3833.3,5.90961448]
[1761931661258,0.03260727,3833.5,3833.3,3.30089615]
[1761931661473,0.1806,3833.6,3833.3,3.30089615]
[1761931661673,0.03260727,3833.5,3833.3,3.30089615]
[1761931662098,0.9501,3833.4,3832.3,0.001]
[1761931662307,3.07312597,3833.3,3832.3,2.61033427]
[1761931662600,4.213815,3833.2,3832.5,2.60921286]
[1761931662765,0.52451068,3833.1,3832.6,2.60916855]
[1761931663102,3.29822,3833.0,3832.3,0.001]
[1761931663266,3.29822,3833.0,3832.3,0.27941431]
[1761931663461,0.4582,3832.4,3832.3,0.001]
[1761931663975,0.9501,3832.4,3832.3,0.001]
[1761931664169,0.1304,3832.5,3832.3,0.001]
[1761931664564,5.197303,3832.4,3832.3,0.001]
[1761931664875,4.876766,3832.4,3832.3,0.001]
[1761931665092,3.47404,3832.4,3832.3,0.001]
[1761931665301,0.1806,3832.9,3832.3,0.001]
[1761931665501,0.21321238,3832.9,3832.3,0.001]
[1761931665706,4.845941,3832.7,3832.3,0.001]
[1761931665914,0.4582,3832.4,3832.3,0.001]
[1761931666267,0.9159,3832.4,3832.3,0.001]
[1761931666604,0.4582,3832.4,3832.3,0.001]
[1761931667007,19.240194,3832.4,3832.3,0.001]
[1761931667207,25.17322436,3832.4,3832.3,0.001]
[1761931667432,34.00914714,3832.2,3832.1,0.01]
[1761931667594,31.70839214,3832.2,3832.1,0.01]
[1761931667925,12.347996,3832.2,3832.1,0.01]
[1761931668207,9.898295,3832.2,3832.1,0.01]
[1761931668374,3.28534113,3832.2,3832.1,0.01]
[1761931668569,5.214831,3832.2,3832.1,0.01]
[1761931668983,7.82429814,3832.2,3832.1,0.01]
[1761931669181,25.32460414,3832.2,3832.1,0.01]
[1761931669586,22.08039214,3832.2,3832.1,0.01]
[1761931670334,30.03482614,3832.2,3832.1,0.01]
[1761931670508,22.50960314,3832.2,3832.1,0.01]
[1761931670676,22.65152682,3832.2,3832.1,0.01]
[1761931670879,13.54033668,3832.2,3832.1,0.01]
[1761931671086,7.987041,3832.2,3832.1,0.01]
[1761931671310,8.749528,3832.2,3832.1,0.01]
[1761931671726,6.004606,3832.2,3832.1,0.01]
[1761931672331,11.066554,3832.2,3832.1,0.01]
[1761931673015,11.066554,3832.2,3832.1,0.011]
[1761931673185,20.05710681,3832.2,3832.1,0.011]
[1761931673390,20.46261081,3832.2,3832.1,0.011]
[1761931674219,32.40755681,3832.2,3832.1,0.011]
[1761931674396,29.89746981,3832.2,3832.1,0.011]
[1761931674797,24.98879567,3832.2,3832.1,0.011]
[1761931674996,25.68004081,3832.2,3832.1,0.011]
[1761931675202,27.67455181,3832.2,3832.1,0.011]
[1761931675393,11.76986367,3832.2,3832.1,0.011]
[1761931675589,11.54005267,3832.2,3832.1,0.011]
[1761931675825,11.45643381,3832.2,3832.1,0.011]
[1761931676011,8.84696667,3832.2,3832.1,0.011]
[1761931676214,19.242962,3832.2,3832.1,0.011]
[1761931676415,20.62274714,3832.2,3832.1,0.011]
[1761931676711,0.1304,3832.2,3832.1,0.011]
[1761931676917,0.6108,3832.2,3832.1,0.011]
[1761931677311,8.809448,3832.2,3832.1,0.011]
[1761931677623,9.267148,3832.2,3832.1,0.011]
[1761931678028,5.441004,3832.2,3832.1,0.011]
[1761931678327,9.137208,3832.2,3832.1,0.011]
[1761931678511,0.6108,3832.2,3832.1,0.011]
[1761931678712,0.1304,3832.2,3832.1,0.011]
[1761931679316,3.721929,3832.2,3832.1,0.011]
[1761931679497,4.0941219,3832.2,3832.1,0.011]
[1761931679697,3.721929,3832.2,3832.1,0.011]
[1761931679897,0.6108,3832.2,3832.1,0.011]
[1761931680098,7.665136,3832.2,3832.1,0.011]
[1761931680298,9.660937,3832.2,3832.1,0.011]
[1761931680519,9.101219,3832.2,3832.1,0.011]
[1761931680697,10.0113409,3832.2,3832.1,0.011]
[1761931681296,22.38627304,3832.2,3832.1,0.011]
[1761931681494,23.48521004,3832.2,3832.1,0.011]
[1761931681723,18.5192439,3832.2,3832.1,0.011]
[1761931681918,21.12871104,3832.2,3832.1,0.011]
[1761931682122,18.5192439,3832.2,3832.1,0.011]
[1761931682365,5.6006479,3832.2,3832.1,0.011]
[1761931682534,2.826342,3832.2,3832.1,0.011]
[1761931682734,2.345942,3832.2,3832.1,0.011]
[1761931682937,2.826342,3832.2,3832.1,0.011]
[1761931683123,3.284042,3832.2,3832.1,0.011]
[1761931683329,14.101581,3832.2,3832.1,0.011]
[1761931683525,11.62502686,3832.2,3832.1,0.011]
[1761931683854,3.995508,3832.2,3832.1,0.011]
[1761931684442,3.820933,3832.2,3832.1,0.011]
[1761931685258,2.652706,3832.2,3832.1,0.011]
[1761931685464,4.281864,3832.2,3832.1,0.011]
[1761931686439,4.738847,3832.2,3832.1,0.011]
[1761931686635,3.01841381,3832.8,3832.1,0.6179]
[1761931686636,0.40933885,3832.8,3832.1,0.6179]
[1761931686947,0.1304,3832.6,3832.5,2.60926288]
[1761931687146,0.1304,3832.6,3832.1,0.1747]
[1761931687147,0.1304,3832.6,3832.1,0.3051]
[1761931687365,0.1304,3832.6,3832.5,2.60926288]
[1761931687552,0.1304,3832.6,3832.5,3.05246288]
[1761931687925,0.1304,3833.2,3832.5,1.0168]
[1761931688153,0.1304,3833.2,3833.1,0.4432]
[1761931688365,0.002,3833.6,3833.3,2.60871833]
[1761931688660,0.002,3833.6,3833.5,3.05178223]
[1761931689252,0.002,3833.6,3833.5,3.52106805]
[1761931689576,0.002,3833.6,3833.5,4.92074805]
[1761931689745,0.002,3833.6,3833.5,5.67368965]
[1761931689939,0.002,3833.6,3833.5,5.64760383]
[1761931691752,0.002,3833.6,3833.5,6.05310783]
[1761931692146,0.002,3833.6,3833.5,5.64760383]
[1761931694081,0.002,3833.6,3833.5,4.24792383]
[1761931695446,0.002,3833.6,3833.5,5.64760383]
[1761931696484,0.002,3833.6,3833.5,6.05310783]
[1761931698869,0.002,3833.6,3833.5,5.64760383]
[1761931699195,0.002,3833.6,3833.5,6.05310783]
[1761931699587,0.002,3833.6,3833.5,6.18350783]
[1761931700912,0.002,3833.6,3833.5,5.77800383]
[1761931702557,0.002,3833.6,3833.5,7.88275838]
[1761931702757,0.002,3833.6,3833.5,8.19555838]
[1761931703907,0.002,3833.6,3833.5,8.60106238]
[1761931704058,0.002,3833.6,3833.5,8.19555838]
[1761931704802,0.002,3833.6,3833.5,8.60106238]
[1761931704972,0.002,3833.6,3833.5,9.72203944]
[1761931705981,1e-08,3834.7,3834.6,2.60783393]
[1761931706308,1e-08,3834.7,3834.6,6.37600841]
[1761931706605,1e-08,3834.7,3834.6,6.34993008]
[1761931706806,1e-08,3834.7,3834.6,6.79313008]
[1761931707014,1e-08,3834.7,3834.6,7.73323457]
[1761931707890,1e-08,3834.7,3834.6,9.13291457]
[1761931709474,1e-08,3834.7,3834.6,8.68971457]
[1761931709914,0.96710001,3834.7,3833.5,4.86307321]
[1761931710094,0.3787,3834.5,3833.3,2.60871833]
[1761931710312,0.03259962,3834.4,3833.2,3.29889615]
[1761931710506,1e-08,3834.7,3833.5,1.39968]
[1761931710706,1e-08,3834.7,3833.3,1.39968]
[1761931710707,0.48190001,3834.7,3833.6,0.30602114]
[1761931710909,0.48390001,3834.7,3834.3,2.6079917]
[1761931711083,0.03259792,3834.6,3833.7,1.39968]
[1761931711416,0.4852,3834.1,3834.0,2.60824204]
[1761931711622,0.00200001,3834.7,3834.0,0.2608242]
[1761931711825,0.00200001,3834.7,3833.5,1.39968]
[1761931711826,0.00200001,3834.7,3834.6,2.60783393]
[1761931712118,0.00200001,3834.7,3834.6,3.05103393]
[1761931712417,0.00200001,3834.7,3834.6,4.45071393]
[1761931712804,0.00200001,3834.7,3834.6,4.58031393]
[1761931713009,0.00200001,3834.7,3834.6,5.74494916]
[1761931715891,0.00200001,3834.7,3834.6,9.44934931]
[1761931716340,0.002,3835.1,3834.8,4.41288192]
[1761931716630,0.002,3835.1,3835.0,3.18036192]
[1761931716799,0.002,3835.1,3835.0,3.62356192]
[1761931716996,0.002,3835.1,3835.0,4.57637752]
[1761931717196,0.002,3835.1,3835.0,8.27877766]
[1761931717652,0.002,3835.1,3835.0,7.43007366]
[1761931718828,0.002,3835.1,3835.0,6.98687366]
[1761931719127,0.002,3835.1,3835.0,7.43007366]
[1761931719512,0.002,3835.1,3835.0,6.98687366]
[1761931719826,0.002,3835.1,3835.0,7.43007366]
[1761931720199,0.002,3835.1,3835.0,6.98687366]
[1761931720624,0.002,3835.1,3835.0,7.43007366]
[1761931721993,0.002,3835.1,3835.0,7.87327366]
[1761931722321,0.002,3835.1,3835.0,7.43007366]
[1761931722925,0.002,3835.1,3835.0,6.98687366]
[1761931723421,0.002,3835.1,3835.0,7.43007366]
[1761931724626,0.002,3835.1,3835.0,7.87327366]
[1761931724790,0.002,3835.1,3835.0,7.43007366]
[1761931726024,0.002,3835.1,3835.0,6.98687366]
[1761931726528,0.002,3835.1,3835.0,7.43007366]
[1761931727405,0.457,3835.1,3835.0,6.03405806]
[1761931728493,0.002,3835.1,3835.0,6.03405806]
[1761931728729,0.457,3835.1,3835.0,6.03405806]
[1761931729025,0.002,3835.1,3835.0,6.03405806]
[1761931729726,0.9139,3835.1,3835.0,6.03405806]
[1761931730230,0.457,3835.1,3835.0,6.03405806]
[1761931730644,0.457,3835.1,3835.0,3.42649614]
[1761931730829,0.9139,3835.1,3835.0,5.90445806]
[1761931731011,0.002,3835.1,3835.0,5.90445806]
[1761931731641,0.457,3835.1,3835.0,5.90445806]
[1761931731941,0.002,3835.1,3835.0,6.34765806]
[1761931732147,0.002,3835.1,3835.0,7.243188]
[1761931732438,0.002,3835.1,3835.0,7.372788]
[1761931733039,0.457,3835.1,3835.0,6.929588]
[1761931733215,0.9139,3835.1,3835.0,6.03405806]
[1761931733416,0.9139,3835.1,3835.0,3.29689614]
[1761931733806,0.9139,3835.1,3834.7,3.29689614]
[1761931734020,0.9139,3835.1,3834.8,2.60767553]
[1761931734021,0.4569,3835.0,3834.8,2.60767553]
[1761931734405,0.455,3834.9,3834.8,2.60767553]
[1761931734614,0.6519,3834.9,3834.8,2.60767553]
[1761931734814,0.6519,3834.9,3834.7,3.29689614]
[1761931734815,1.1088,3834.9,3834.7,3.29689614]
[1761931735010,0.883,3834.8,3834.7,3.29689614]
[1761931735238,0.883,3834.8,3834.7,5.90466206]
[1761931735542,0.883,3834.8,3834.6,0.001]
[1761931735725,0.9116,3834.7,3834.6,0.001]
[1761931735924,0.9116,3834.7,3834.6,2.60883393]
[1761931736128,0.3265,3834.9,3834.8,2.60769792]
[1761931736444,0.1969,3834.9,3834.8,2.60769792]
[1761931736641,0.6519,3834.9,3834.8,2.60769792]
[1761931736824,0.002,3835.1,3835.0,2.60756192]
[1761931737224,0.457,3835.1,3835.0,2.60756192]
[1761931737747,0.002,3835.1,3835.0,2.60756192]
[1761931740038,0.002,3835.1,3835.0,3.14465553]
[1761931740239,0.457,3835.1,3835.0,3.14465553]
[1761931740446,0.9139,3835.1,3835.0,2.60756192]
[1761931740642,0.9139,3835.1,3834.6,2.60876768]
[1761931740959,0.6519,3834.7,3834.6,0.001]
[1761931741336,1.1088,3834.7,3834.6,0.001]
[1761931742422,12.23689,3834.7,3834.6,0.001]
[1761931742724,11.111739,3834.7,3834.6,0.001]
[1761931743349,15.52468892,3834.7,3834.6,0.001]
[1761931743560,8.312936,3834.7,3834.6,0.001]
[1761931743756,10.92070192,3834.7,3834.6,0.001]
[1761931743960,8.312936,3834.7,3834.6,0.001]
[1761931744171,4.388713,3834.7,3834.6,0.001]
[1761931744464,5.618987,3834.7,3834.6,0.001]
[1761931744666,3.342429,3834.7,3834.6,0.001]
[1761931745262,3.37502607,3834.7,3834.6,0.001]
[1761931745460,6.84178307,3834.7,3834.6,0.001]
[1761931745662,4.744962,3834.7,3834.6,0.001]
[1761931745824,5.2194582,3834.7,3834.6,0.001]
[1761931746029,5.25205527,3834.7,3834.6,0.001]
[1761931746351,5.03110027,3834.7,3834.6,0.001]
[1761931746661,2.60837811,3833.8,3833.7,0.43246307]
[1761931746875,2.60837811,3833.8,3833.1,0.01]
[1761931746876,2.60878639,3833.2,3833.1,0.01]
[1761931747021,2.60878639,3833.2,3832.1,0.011]
[1761931747022,30.0,3833.1,3832.1,0.011]
[1761931747223,13.690547,3832.4,3832.1,0.011]
[1761931747532,1.8088547,3832.4,3832.1,0.011]
[1761931747740,0.8967,3832.4,3832.1,0.011]
[1761931748140,3.66101,3832.4,3832.1,0.011]
[1761931748335,0.8967,3832.4,3832.1,0.011]
[1761931748539,4.832259,3832.4,3832.1,0.011]
[1761931748738,17.71579414,3832.2,3832.1,0.011]
[1761931749065,16.533831,3832.0,3831.7,0.001]
[1761931749298,10.94969034,3832.0,3831.7,0.001]
[1761931749569,1.805184,3831.9,3831.7,0.001]
[1761931749868,34.41505976,3831.6,3831.1,0.01]
[1761931750032,27.01938725,3831.2,3831.1,0.01]
[1761931750235,28.83096725,3831.2,3831.1,0.01]
[1761931750442,34.87862825,3831.2,3831.1,0.01]
[1761931750665,31.94408625,3831.2,3831.1,0.01]
[1761931750995,24.37795597,3831.2,3831.1,0.01]
[1761931751282,27.46260042,3831.2,3831.1,0.01]
[1761931751577,13.67410117,3831.2,3831.1,0.01]
[1761931751781,10.41259117,3831.2,3831.1,0.01]
[1761931751939,9.17072317,3831.2,3831.1,0.01]
[1761931752654,9.27572217,3831.2,3831.1,0.01]
[1761931752843,12.29137442,3831.2,3831.1,0.01]
[1761931753252,9.68122617,3831.2,3831.1,0.01]
[1761931753456,7.34404817,3831.2,3831.1,0.01]
[1761931753663,9.95419642,3831.2,3831.1,0.01]
[1761931753864,7.34404817,3831.2,3831.1,0.01]
[1761931754069,9.95419642,3831.2,3831.1,0.01]
[1761931754263,10.36383332,3831.2,3831.1,0.01]
[1761931754464,6.17228432,3831.2,3831.1,0.01]
[1761931754672,33.56213607,3831.2,3831.1,0.01]
[1761931754866,36.17228432,3831.2,3831.1,0.01]
[1761931755182,33.56213607,3831.2,3831.1,0.01]
[1761931755559,36.17228432,3831.2,3831.1,0.01]
[1761931755755,36.57778832,3831.2,3831.1,0.01]
[1761931757489,6.57778832,3831.2,3831.1,0.01]
[1761931757666,36.57778832,3831.2,3831.1,0.01]
[1761931758889,36.16815142,3831.2,3831.1,0.01]
[1761931761085,33.01599294,3830.7,3830.6,0.001]
[1761931761313,34.4158774,3830.4,3830.3,0.001]
[1761931761613,3.01633372,3830.2,3830.1,0.01]
[1761931761772,30.405504,3829.4,3828.6,0.001]
[1761931761977,0.405504,3829.0,3828.6,0.001]
[1761931762313,27.12901853,3829.0,3828.6,0.001]
[1761931762484,24.457881,3829.0,3828.6,0.001]
[1761931762685,12.095307,3829.0,3828.6,0.001]
[1761931763012,2.032129,3829.0,3828.6,0.001]
[1761931763303,7.741094,3829.0,3828.6,0.001]
[1761931763684,10.436692,3829.0,3828.6,0.001]
[1761931763885,7.331557,3829.0,3828.6,0.001]
[1761931764085,7.046231,3829.0,3828.6,0.001]
[1761931764312,8.111148,3829.4,3828.6,0.001]
[1761931764503,5.11526,3829.2,3828.6,0.001]
[1761931764669,1.87578,3829.5,3828.6,0.001]
[1761931764670,3.233443,3829.4,3828.6,0.001]
[1761931764879,10.024387,3829.6,3828.9,2.61266936]
[1761931765209,8.375572,3829.6,3828.9,0.001]
[1761931765786,0.1304,3829.2,3829.1,2.61157974]
[1761931766116,0.1304,3829.2,3829.1,3.17934251]
[1761931766474,0.1304,3829.2,3829.1,3.83884251]
[1761931766675,0.1304,3829.2,3829.1,4.29224251]
[1761931766878,0.1304,3829.4,3829.3,2.61141438]
[1761931767405,0.1304,3829.4,3829.3,4.06748789]
[1761931767605,0.1304,3829.4,3829.3,4.52088789]
[1761931768576,0.1304,3829.4,3829.3,1.45607351]
[1761931768809,0.1304,3829.4,3829.3,3.10424334]
[1761931768991,0.1304,3829.4,3829.3,3.55764334]
[1761931769782,0.1304,3829.4,3829.3,0.4928]
[1761931769997,0.1304,3829.4,3829.1,0.1667]
[1761931770200,0.1304,3829.4,3829.1,2.77822899]
[1761931770589,0.1304,3829.4,3829.2,2.611456]
[1761931770794,0.1304,3829.4,3829.3,2.61144334]
[1761931771714,0.1304,3829.4,3829.3,3.10424334]
[1761931771915,0.1304,3829.4,3829.3,2.61144334]
[1761931772413,0.1304,3829.4,3829.3,4.09661467]
[1761931773110,6.303288,3830.1,3829.9,2.61100367]
[1761931773312,0.1304,3829.9,3829.4,0.4534]
[1761931773719,0.03263878,3829.8,3829.3,0.66937133]
[1761931774013,0.03263878,3829.8,3829.2,3.29689614]
[1761931774216,13.046016,3829.7,3829.2,3.29689614]
[1761931774515,0.1304,3829.3,3829.2,5.90838219]
[1761931774815,0.1304,3829.3,3829.2,3.10431154]
[1761931775190,0.1304,3829.3,3829.2,3.7380121]
[1761931775395,0.1304,3829.3,3829.2,4.1914121]
[1761931775804,0.1304,3829.3,3829.2,3.7380121]
[1761931776031,13.221796,3830.0,3829.6,2.61117796]
[1761931776541,0.40969628,3830.2,3829.8,2.6111024]
[1761931776698,0.40969628,3830.2,3829.7,0.4795117]
[1761931776699,0.40969628,3830.2,3830.1,3.25039788]
[1761931777332,0.40969628,3830.2,3830.1,3.72990685]
[1761931777530,0.01,3830.7,3830.6,2.61055709]
[1761931778097,0.01,3830.7,3830.1,0.78079411]
[1761931778300,0.01,3830.7,3830.1,0.1467]
[1761931778527,0.01,3830.7,3830.3,2.61071473]
[1761931778708,0.01,3830.7,3830.1,0.1467]
[1761931778916,0.01,3830.7,3830.6,2.61055709]
[1761931779706,0.01,3830.7,3830.6,3.10335709]
[1761931779900,0.01,3830.7,3830.6,2.61055709]
[1761931780114,0.01,3830.7,3830.1,0.1467]
[1761931780640,0.01,3830.7,3829.3,4.01105861]
[1761931780641,0.03263196,3830.6,3830.2,2.61078562]
[1761931780805,0.03263196,3830.6,3830.3,2.61070832]
[1761931781006,0.03263196,3830.6,3830.4,2.6106934]
[1761931781413,0.03263196,3830.6,3830.5,2.61062524]
[1761931781834,0.03263196,3830.6,3830.3,2.61075593]
[1761931782137,0.03263196,3830.6,3830.1,0.1467]
[1761931782138,0.03263196,3830.6,3830.4,2.61068066]
[1761931782807,0.4752,3830.5,3829.4,0.67892954]
[1761931783003,0.03263366,3830.4,3829.5,0.4534]
[1761931783235,0.03263366,3830.4,3830.3,2.61076155]
[1761931783437,3.502222,3830.6,3830.5,2.61062524]
[1761931783638,0.01,3830.7,3830.3,0.4928]
[1761931783805,0.01,3830.7,3830.0,2.61091763]
[1761931783806,0.03263196,3830.6,3830.0,2.61091763]
[1761931784013,0.03263196,3830.6,3829.4,2.61137515]
[1761931784339,0.03263196,3830.6,3829.2,0.84644989]
[1761931784340,0.01,3830.7,3830.4,2.61063282]
[1761931785126,0.01,3830.7,3830.5,2.61057116]
[1761931785306,0.01,3830.7,3830.1,0.1467]
[1761931785508,4.84920296,3830.6,3829.5,0.4534]